[Event "Top 12 Féminin 2026"]
[Site "Asnières-sur-Seine, France"]
[Date "2026.05.14"]
[Round "2.5"]
[White "Bulmaga, Irina"]
[Black "Batsiashvili, Nino"]
[Result "1/2-1/2"]
[TimeControl "1h30 / 40 moves + 30m + 30sec/move"]
[WhiteTitle "IM"]
[BlackTitle "GM"]
[WhiteFideId "-"]
[BlackFideId "-"]
[WhiteElo "2361"]
[BlackElo "2475"]

1. e4 {[%clk 01:30:56]} {[%emt 00:00:03]} e5 {[%clk 01:30:56]} {[%emt
00:00:06]} 2. Nf3 {[%clk 01:31:19]} {[%emt 00:00:06]} Nc6 {[%clk 01:31:18]}
{[%emt 00:00:08]} 3. Nc3 {[%clk 01:31:43]} {[%emt 00:00:06]} Nf6 {[%clk
01:31:44]} {[%emt 00:00:05]} 4. h3 {[%clk 01:32:02]} {[%emt 00:00:10]} d5
{[%clk 01:29:00]} {[%emt 00:03:14]} 5. exd5 {[%clk 01:32:05]} {[%emt 00:00:27]}
Nxd5 {[%clk 01:29:21]} {[%emt 00:00:10]} 6. Bb5 {[%clk 01:31:59]} {[%emt
00:00:35]} Nxc3 {[%clk 01:28:54]} {[%emt 00:00:57]} 7. bxc3 {[%clk 01:32:22]}
{[%emt 00:00:07]} Bd6 {[%clk 01:29:18]} {[%emt 00:00:06]} 8. O-O {[%clk
01:31:47]} {[%emt 00:01:05]} O-O {[%clk 01:29:39]} {[%emt 00:00:09]} 9. d4
{[%clk 01:31:51]} {[%emt 00:00:25]} exd4 {[%clk 01:26:48]} {[%emt 00:03:22]} 10.
cxd4 {[%clk 01:32:11]} {[%emt 00:00:10]} h6 {[%clk 01:26:53]} {[%emt 00:00:25]}
11. c4 {[%clk 01:31:45]} {[%emt 00:00:55]} Qf6 {[%clk 01:24:00]} {[%emt
00:03:22]} 12. Bb2 {[%clk 01:31:39]} {[%emt 00:00:37]} Bf5 {[%clk 01:22:39]}
{[%emt 00:01:51]} 13. Qd2 {[%clk 01:27:05]} {[%emt 00:05:05]} Be4 {[%clk
01:17:08]} {[%emt 00:06:00]} 14. d5 {[%clk 01:25:20]} {[%emt 00:02:15]} Qg6
{[%clk 01:17:12]} {[%emt 00:00:26]} 15. Nh4 {[%clk 01:21:57]} {[%emt 00:03:53]}
Qg5 {[%clk 01:16:56]} {[%emt 00:00:46]} 16. Qxg5 {[%clk 01:18:37]} {[%emt
00:03:50]} hxg5 {[%clk 01:17:21]} {[%emt 00:00:05]} 17. dxc6 {[%clk 01:18:41]}
{[%emt 00:00:26]} gxh4 {[%clk 01:15:14]} {[%emt 00:02:37]} 18. cxb7 {[%clk
01:16:59]} {[%emt 00:02:13]} Bxb7 {[%clk 01:15:36]} {[%emt 00:00:08]} 19. Rfe1
{[%clk 01:15:33]} {[%emt 00:01:56]} 1/2-1/2

[Event "Top 12 Féminin 2026"]
[Site "Asnières-sur-Seine, France"]
[Date "2026.05.14"]
[Round "2.6"]
[White "Guichard, Pauline"]
[Black "Negre, Emilie"]
[Result "1-0"]
[TimeControl "1h30 / 40 moves + 30m + 30sec/move"]
[WhiteTitle "IM"]
[BlackTitle "WFM"]
[WhiteFideId "-"]
[BlackFideId "-"]
[WhiteElo "2333"]
[BlackElo "2101"]

1. d4 {[%clk 01:30:50]} {[%emt 00:00:10]} d5 {[%clk 01:30:42]} {[%emt
00:00:18]} 2. c4 {[%clk 01:31:04]} {[%emt 00:00:15]} e6 {[%clk 01:31:03]}
{[%emt 00:00:09]} 3. Nf3 {[%clk 01:30:01]} {[%emt 00:01:33]} c6 {[%clk
01:31:16]} {[%emt 00:00:17]} 4. e3 {[%clk 01:30:02]} {[%emt 00:00:29]} f5
{[%clk 01:31:27]} {[%emt 00:00:20]} 5. Bd3 {[%clk 01:28:26]} {[%emt 00:02:05]}
Nf6 {[%clk 01:31:40]} {[%emt 00:00:15]} 6. O-O {[%clk 01:23:06]} {[%emt
00:05:52]} Bd6 {[%clk 01:31:38]} {[%emt 00:00:32]} 7. b3 {[%clk 01:23:27]}
{[%emt 00:00:10]} Qe7 {[%clk 01:32:01]} {[%emt 00:00:07]} 8. Bb2 {[%clk
01:23:11]} {[%emt 00:00:47]} O-O {[%clk 01:32:19]} {[%emt 00:00:11]} 9. Qc2
{[%clk 01:22:54]} {[%emt 00:00:47]} Nbd7 {[%clk 01:25:33]} {[%emt 00:07:17]} 10.
Nc3 {[%clk 01:04:36]} {[%emt 00:18:47]} Ne4 {[%clk 01:21:08]} {[%emt 00:04:53]}
11. Ne2 {[%clk 01:04:31]} {[%emt 00:00:37]} g5 {[%clk 00:59:10]} {[%emt
00:22:28]} 12. Rac1 {[%clk 00:55:10]} {[%emt 00:09:52]} Qf6 {[%clk 00:46:19]}
{[%emt 00:13:21]} 13. g3 {[%clk 00:32:11]} {[%emt 00:23:30]} Qh6 {[%clk
00:26:21]} {[%emt 00:20:27]} 14. Ne5 {[%clk 00:30:18]} {[%emt 00:02:23]} Ndf6
{[%clk 00:14:35]} {[%emt 00:12:17]} 15. f3 {[%clk 00:30:17]} {[%emt 00:00:30]}
g4 {[%clk 00:14:50]} {[%emt 00:00:15]} 16. f4 {[%clk 00:30:42]} {[%emt
00:00:05]} Qg7 {[%clk 00:07:58]} {[%emt 00:07:22]} 17. Nc3 {[%clk 00:26:00]}
{[%emt 00:05:12]} Bd7 {[%clk 00:06:44]} {[%emt 00:01:44]} 18. Nxe4 {[%clk
00:21:06]} {[%emt 00:05:24]} Nxe4 {[%clk 00:01:52]} {[%emt 00:05:22]} 19. Bxe4
{[%clk 00:21:26]} {[%emt 00:00:10]} fxe4 {[%clk 00:02:05]} {[%emt 00:00:16]} 20.
b4 {[%clk 00:11:53]} {[%emt 00:10:04]} Bxb4 {[%clk 00:00:38]} {[%emt 00:01:58]}
21. Qb3 {[%clk 00:12:19]} {[%emt 00:00:04]} Bd6 {[%clk 00:00:53]} {[%emt
00:00:15]} 22. Ba3 {[%clk 00:12:22]} {[%emt 00:00:27]} Qe7 {[%clk 00:00:34]}
{[%emt 00:00:49]} 23. Bxd6 {[%clk 00:11:45]} {[%emt 00:01:08]} Qxd6 {[%clk
00:01:02]} {[%emt 00:00:02]} 24. Qxb7 {[%clk 00:11:42]} {[%emt 00:00:32]} Rfd8
{[%clk 00:00:44]} {[%emt 00:00:48]} 25. c5 {[%clk 00:07:34]} {[%emt 00:04:39]}
Qb8 {[%clk 00:00:42]} {[%emt 00:00:30]} 26. Rb1 {[%clk 00:07:21]} {[%emt
00:00:44]} Be8 {[%clk 00:01:05]} {[%emt 00:00:06]} 27. Qe7 {[%clk 00:06:56]}
{[%emt 00:00:55]} Qc8 {[%clk 00:00:52]} {[%emt 00:00:43]} 28. Rb7 {[%clk
00:06:39]} {[%emt 00:00:48]} 1-0

[Event "Top 12 Féminin 2026"]
[Site "Asnières-sur-Seine, France"]
[Date "2026.05.14"]
[Round "2.7"]
[White "Bensdorp-De Labaca, Marlies"]
[Black "Iglesias, Yosha"]
[Result "0-1"]
[TimeControl "1h30 / 40 moves + 30m + 30sec/move"]
[WhiteTitle "WIM"]
[BlackTitle "FM"]
[WhiteFideId "-"]
[BlackFideId "-"]
[WhiteElo "2175"]
[BlackElo "2325"]

1. d4 {[%clk 01:30:57]} {[%emt 00:00:02]} d5 {[%clk 01:30:53]} {[%emt
00:00:07]} 2. c4 {[%clk 01:31:23]} {[%emt 00:00:05]} c6 {[%clk 01:31:19]}
{[%emt 00:00:04]} 3. Nc3 {[%clk 01:31:50]} {[%emt 00:00:04]} Nf6 {[%clk
01:31:41]} {[%emt 00:00:07]} 4. e3 {[%clk 01:32:16]} {[%emt 00:00:05]} Bf5
{[%clk 01:31:27]} {[%emt 00:00:43]} 5. cxd5 {[%clk 01:32:01]} {[%emt 00:00:45]}
cxd5 {[%clk 01:31:49]} {[%emt 00:00:08]} 6. Qb3 {[%clk 01:32:20]} {[%emt
00:00:12]} Nc6 {[%clk 01:30:36]} {[%emt 00:01:42]} 7. Qxb7 {[%clk 01:32:43]}
{[%emt 00:00:08]} Bd7 {[%clk 01:30:47]} {[%emt 00:00:18]} 8. Qb3 {[%clk
01:33:01]} {[%emt 00:00:12]} Rb8 {[%clk 01:31:02]} {[%emt 00:00:15]} 9. Qd1
{[%clk 01:33:11]} {[%emt 00:00:21]} e5 {[%clk 01:30:49]} {[%emt 00:00:43]} 10.
dxe5 {[%clk 01:33:14]} {[%emt 00:00:27]} Nxe5 {[%clk 01:31:10]} {[%emt
00:00:07]} 11. Nge2 {[%clk 01:31:18]} {[%emt 00:02:27]} Bc5 {[%clk 01:27:33]}
{[%emt 00:04:07]} 12. Nf4 {[%clk 01:24:12]} {[%emt 00:07:36]} O-O {[%clk
01:25:34]} {[%emt 00:02:28]} 13. Be2 {[%clk 01:23:38]} {[%emt 00:01:04]} Ng6
{[%clk 01:17:54]} {[%emt 00:08:10]} 14. Nxg6 {[%clk 01:13:47]} {[%emt
00:10:21]} hxg6 {[%clk 01:17:43]} {[%emt 00:00:41]} 15. O-O {[%clk 01:14:01]}
{[%emt 00:00:16]} Qc7 {[%clk 01:17:10]} {[%emt 00:01:03]} 16. Bf3 {[%clk
01:08:13]} {[%emt 00:06:18]} Rfd8 {[%clk 01:15:51]} {[%emt 00:01:49]} 17. Re1
{[%clk 00:57:03]} {[%emt 00:11:41]} Be6 {[%clk 01:09:36]} {[%emt 00:06:44]} 18.
Ne2 {[%clk 00:52:14]} {[%emt 00:05:20]} Bb4 {[%clk 00:30:30]} {[%emt 00:39:37]}
19. Rf1 {[%clk 00:42:52]} {[%emt 00:09:51]} Bd6 {[%clk 00:25:30]} {[%emt
00:05:30]} 20. g3 {[%clk 00:38:10]} {[%emt 00:05:13]} Bh3 {[%clk 00:23:53]}
{[%emt 00:02:06]} 21. Bg2 {[%clk 00:30:31]} {[%emt 00:08:09]} Bxg2 {[%clk
00:22:26]} {[%emt 00:01:58]} 22. Kxg2 {[%clk 00:30:58]} {[%emt 00:00:04]} Be5
{[%clk 00:21:06]} {[%emt 00:01:49]} 23. Nd4 {[%clk 00:29:49]} {[%emt 00:01:40]}
Ne4 {[%clk 00:18:03]} {[%emt 00:03:32]} 24. Rb1 {[%clk 00:16:47]} {[%emt
00:13:33]} Nc3 {[%clk 00:15:04]} {[%emt 00:03:29]} 25. bxc3 {[%clk 00:16:20]}
{[%emt 00:00:57]} Rxb1 {[%emt 00:01:22]} 26. Qc2 {[%clk 00:15:32]} Rb7 {[%clk
00:14:49]} {[%emt 00:01:10]} 27. Rd1 {[%clk 00:14:11]} {[%emt 00:01:51]} Rc8
{[%clk 00:12:10]} {[%emt 00:03:09]} 28. Rd3 {[%clk 00:14:20]} {[%emt 00:00:22]}
Bxd4 {[%clk 00:10:36]} {[%emt 00:02:03]} 29. exd4 {[%clk 00:14:37]} {[%emt
00:00:14]} Re8 {[%clk 00:10:24]} {[%emt 00:00:41]} 30. Bf4 {[%clk 00:10:40]}
{[%emt 00:04:28]} Qc4 {[%clk 00:09:12]} {[%emt 00:01:41]} 31. Be3 {[%clk
00:06:24]} {[%emt 00:04:47]} Reb8 {[%clk 00:08:54]} {[%emt 00:00:47]} 32. Bc1
{[%clk 00:06:07]} {[%emt 00:00:47]} Rb1 {[%clk 00:05:03]} {[%emt 00:04:21]} 33.
Re3 {[%clk 00:04:22]} {[%emt 00:02:16]} Ra1 {[%clk 00:04:57]} {[%emt 00:00:36]}
34. a3 {[%clk 00:02:45]} {[%emt 00:02:07]} Ra2 {[%clk 00:02:09]} {[%emt
00:03:17]} 35. Qd1 {[%clk 00:03:04]} {[%emt 00:00:11]} Qc8 {[%clk 00:01:27]}
{[%emt 00:01:12]} 36. Qa4 {[%clk 00:01:22]} {[%emt 00:02:12]} Qf5 {[%clk
00:01:13]} {[%emt 00:00:44]} 37. Rf3 {[%clk 00:01:40]} {[%emt 00:00:12]} Qe6
{[%clk 00:00:36]} {[%emt 00:01:06]} 38. Qxa7 {[%clk 00:01:44]} {[%emt
00:00:27]} Rb1 {[%clk 00:00:51]} {[%emt 00:00:14]} 39. Re3 {[%clk 00:00:49]}
{[%emt 00:01:26]} Qf5 {[%clk 00:00:59]} {[%emt 00:00:23]} 40. Rf3 {[%clk
00:01:09]} {[%emt 00:00:10]} Qe6 {[%clk 00:00:41]} {[%emt 00:00:47]} 41. Re3
{[%clk 00:01:35]} {[%emt 00:00:05]} Rxf2+ {[%clk 00:10:46]} {[%emt 00:20:25]}
42. Kxf2 {[%clk 00:31:59]} {[%emt 00:00:05]} Qf5+ {[%clk 00:08:50]} {[%emt
00:02:27]} 43. Kg2 {[%clk 00:25:35]} {[%emt 00:06:54]} Qc2+ {[%clk 00:07:51]}
{[%emt 00:01:28]} 44. Kh3 {[%clk 00:24:04]} {[%emt 00:02:01]} Qxc1 {[%clk
00:07:27]} {[%emt 00:00:55]} 45. Qe7 {[%clk 00:09:35]} {[%emt 00:14:59]} Qf1+
{[%clk 00:07:27]} {[%emt 00:00:30]} 46. Kh4 {[%clk 00:09:58]} {[%emt 00:00:07]}
Rb2 {[%clk 00:07:03]} {[%emt 00:00:55]} 47. h3 {[%clk 00:09:10]} {[%emt
00:01:18]} Rh2 {[%clk 00:07:09]} {[%emt 00:00:24]} 48. Qd7 {[%clk 00:07:08]}
{[%emt 00:02:33]} Rxh3+ {[%clk 00:05:40]} {[%emt 00:01:59]} 49. Kg4 {[%clk
00:06:29]} {[%emt 00:01:08]} Rh5 {[%clk 00:05:28]} {[%emt 00:00:42]} 50. Qe8+
{[%clk 00:03:46]} {[%emt 00:03:14]} Kh7 {[%clk 00:05:53]} {[%emt 00:00:05]} 51.
Rf3 {[%clk 00:03:55]} {[%emt 00:00:21]} Qh3+ {[%clk 00:05:09]} {[%emt
00:01:13]} 52. Kf4 {[%clk 00:04:21]} {[%emt 00:00:04]} Rf5+ {[%clk 00:05:36]}
{[%emt 00:00:03]} 53. Ke3 {[%clk 00:04:47]} {[%emt 00:00:05]} Rxf3+ {[%clk
00:05:56]} {[%emt 00:00:10]} 54. Kxf3 {[%clk 00:05:11]} {[%emt 00:00:05]} Qf1+
{[%clk 00:06:22]} {[%emt 00:00:04]} 55. Kg4 {[%clk 00:05:00]} {[%emt 00:00:41]}
Qf5+ {[%clk 00:06:48]} {[%emt 00:00:04]} 56. Kh4 {[%clk 00:05:27]} {[%emt
00:00:04]} Qh5# {[%clk 00:06:46]} {[%emt 00:00:03]} 0-1

[Event "Top 12 Féminin 2026"]
[Site "Asnières-sur-Seine, France"]
[Date "2026.05.14"]
[Round "2.8"]
[White "Belluire, Beatrice"]
[Black "Alfano, Emilie"]
[Result "1-0"]
[TimeControl "1h30 / 40 moves + 30m + 30sec/move"]
[WhiteTitle "WFM"]
[BlackTitle "WFM"]
[WhiteFideId "-"]
[BlackFideId "-"]
[WhiteElo "2123"]
[BlackElo "2051"]

1. e4 {[%clk 01:30:59]} e5 {[%clk 01:30:55]} {[%emt 00:00:05]} 2. Nf3 {[%clk
01:31:22]} {[%emt 00:00:07]} Nc6 {[%clk 01:31:21]} {[%emt 00:00:04]} 3. Bc4
{[%clk 01:31:47]} {[%emt 00:00:05]} d6 {[%clk 01:31:47]} {[%emt 00:00:05]} 4.
d4 {[%clk 01:30:53]} {[%emt 00:01:24]} Nf6 {[%clk 01:32:02]} {[%emt 00:00:15]}
5. Nc3 {[%clk 01:26:16]} {[%emt 00:05:07]} Bg4 {[%clk 01:30:53]} {[%emt
00:01:38]} 6. d5 {[%clk 01:22:42]} {[%emt 00:04:05]} Nb8 {[%clk 01:23:34]}
{[%emt 00:07:48]} 7. h3 {[%clk 01:21:43]} {[%emt 00:01:28]} Bh5 {[%clk
01:20:00]} {[%emt 00:04:04]} 8. O-O {[%clk 01:20:33]} {[%emt 00:01:41]} Be7
{[%clk 01:17:56]} {[%emt 00:02:34]} 9. Re1 {[%clk 01:19:43]} {[%emt 00:01:20]}
Nbd7 {[%clk 01:15:17]} {[%emt 00:03:08]} 10. Be3 {[%clk 01:05:32]} {[%emt
00:14:41]} O-O {[%clk 01:09:08]} {[%emt 00:06:40]} 11. g4 {[%clk 01:03:16]}
{[%emt 00:02:46]} Bg6 {[%clk 01:08:42]} {[%emt 00:00:55]} 12. Nd2 {[%clk
01:02:38]} {[%emt 00:01:08]} h6 {[%clk 00:53:25]} {[%emt 00:15:47]} 13. Kg2
{[%clk 00:59:56]} {[%emt 00:03:12]} Nh7 {[%clk 00:49:25]} {[%emt 00:04:30]} 14.
f3 {[%clk 00:58:27]} {[%emt 00:02:00]} Bg5 {[%clk 00:37:22]} {[%emt 00:12:33]}
15. Qe2 {[%clk 00:56:36]} {[%emt 00:02:21]} Bxe3 {[%clk 00:28:40]} {[%emt
00:09:12]} 16. Qxe3 {[%clk 00:56:58]} {[%emt 00:00:08]} Qg5 {[%clk 00:23:43]}
{[%emt 00:05:26]} 17. Qxg5 {[%clk 00:53:12]} {[%emt 00:04:17]} hxg5 {[%clk
00:24:03]} {[%emt 00:00:11]} 18. Bb5 {[%clk 00:47:10]} {[%emt 00:06:32]} Nb8
{[%clk 00:15:33]} {[%emt 00:08:59]} 19. a4 {[%clk 00:45:39]} {[%emt 00:02:01]}
a5 {[%clk 00:13:18]} {[%emt 00:02:45]} 20. Rad1 {[%clk 00:42:48]} {[%emt
00:03:21]} f6 {[%clk 00:12:58]} {[%emt 00:00:51]} 21. Bc4 {[%clk 00:38:35]}
{[%emt 00:04:42]} Bf7 {[%clk 00:11:23]} {[%emt 00:02:06]} 22. Rh1 {[%clk
00:35:59]} {[%emt 00:03:06]} Rc8 {[%clk 00:09:54]} {[%emt 00:01:56]} 23. h4
{[%clk 00:35:35]} {[%emt 00:00:56]} gxh4 {[%clk 00:07:59]} {[%emt 00:02:25]} 24.
Rxh4 {[%clk 00:35:25]} {[%emt 00:00:40]} Nf8 {[%clk 00:08:22]} {[%emt
00:00:06]} 25. Rh2 {[%clk 00:30:15]} {[%emt 00:05:41]} Ng6 {[%clk 00:07:07]}
{[%emt 00:01:45]} 26. Kg3 {[%clk 00:27:06]} {[%emt 00:03:39]} Nd7 {[%clk
00:05:52]} {[%emt 00:01:45]} 27. Nf1 {[%clk 00:25:44]} {[%emt 00:01:52]} Ndf8
{[%clk 00:00:38]} {[%emt 00:05:44]} 28. Ne3 {[%clk 00:25:55]} {[%emt 00:00:19]}
Be8 {[%clk 00:00:59]} {[%emt 00:00:10]} 29. Nf5 {[%clk 00:23:04]} {[%emt
00:03:20]} Kf7 {[%clk 00:00:41]} {[%emt 00:00:48]} 30. Bb5 {[%clk 00:22:05]}
{[%emt 00:01:30]} Rd8 {[%clk 00:00:32]} {[%emt 00:00:38]} 31. Bxe8+ {[%clk
00:16:08]} {[%emt 00:06:26]} Rxe8 {[%clk 00:01:01]} {[%emt 00:00:02]} 32. Nb5
{[%clk 00:16:33]} {[%emt 00:00:05]} Rac8 {[%clk 00:00:35]} {[%emt 00:00:56]} 33.
Rd3 {[%clk 00:16:58]} {[%emt 00:00:04]} Ne7 {[%clk 00:00:32]} {[%emt 00:00:33]}
34. Rc3 {[%clk 00:14:15]} {[%emt 00:03:13]} Nxf5+ {[%clk 00:00:32]} {[%emt
00:00:31]} 35. gxf5 {[%clk 00:14:43]} {[%emt 00:00:02]} Red8 {[%clk 00:00:32]}
{[%emt 00:00:30]} 36. Na7 {[%clk 00:13:30]} {[%emt 00:01:43]} Ra8 {[%clk
00:00:45]} {[%emt 00:00:16]} 37. Rxc7+ {[%clk 00:13:48]} {[%emt 00:00:12]} Rd7
{[%clk 00:00:57]} {[%emt 00:00:18]} 38. Rxd7+ {[%clk 00:13:56]} {[%emt
00:00:22]} Nxd7 {[%clk 00:01:25]} {[%emt 00:00:01]} 39. Nb5 {[%clk 00:14:22]}
{[%emt 00:00:04]} Ke7 {[%clk 00:00:38]} {[%emt 00:01:17]} 40. Kf2 {[%clk
00:09:20]} {[%emt 00:05:32]} Rc8 {[%clk 00:00:38]} {[%emt 00:00:30]} 41. Ke3
{[%clk 00:09:41]} {[%emt 00:00:08]} Nb6 {[%clk 00:25:57]} {[%emt 00:05:11]} 42.
b3 {[%clk 00:39:47]} {[%emt 00:00:25]} Nd7 {[%clk 00:24:44]} {[%emt 00:01:43]}
43. Rg2 {[%clk 00:40:09]} {[%emt 00:00:08]} Rg8 {[%clk 00:24:43]} {[%emt
00:00:31]} 44. Na3 {[%clk 00:38:40]} {[%emt 00:01:59]} Nb6 {[%clk 00:24:13]}
{[%emt 00:01:00]} 45. Kd3 {[%clk 00:38:43]} {[%emt 00:00:27]} Nd7 {[%clk
00:18:34]} {[%emt 00:06:09]} 46. Nc4 {[%clk 00:38:48]} {[%emt 00:00:25]} b6
{[%clk 00:16:36]} {[%emt 00:02:29]} 47. Kd2 {[%clk 00:38:19]} {[%emt 00:00:58]}
Kf8 {[%clk 00:15:27]} {[%emt 00:01:38]} 48. Nxd6 {[%clk 00:38:28]} {[%emt
00:00:22]} Rh8 {[%clk 00:15:50]} {[%emt 00:00:07]} 49. Nc4 {[%clk 00:35:40]}
{[%emt 00:03:18]} Rh3 {[%clk 00:16:03]} {[%emt 00:00:16]} 50. Ke3 {[%clk
00:34:19]} {[%emt 00:01:51]} Rh1 {[%clk 00:15:46]} {[%emt 00:00:48]} 51. Rd2
{[%clk 00:33:03]} {[%emt 00:01:46]} Kf7 {[%clk 00:13:25]} {[%emt 00:02:48]} 52.
d6 {[%clk 00:32:39]} {[%emt 00:00:56]} Ke8 {[%clk 00:13:42]} {[%emt 00:00:13]}
53. Rd5 {[%clk 00:30:49]} {[%emt 00:02:21]} Rh2 {[%clk 00:13:43]} {[%emt
00:00:27]} 54. Rd2 {[%clk 00:29:29]} {[%emt 00:01:51]} Rh1 {[%clk 00:13:05]}
{[%emt 00:01:08]} 55. Kf2 {[%clk 00:21:59]} {[%emt 00:08:00]} Kd8 {[%clk
00:09:52]} {[%emt 00:03:43]} 56. Kg2 {[%clk 00:21:45]} {[%emt 00:00:44]} Rc1
{[%clk 00:09:26]} {[%emt 00:00:56]} 57. Ne3 {[%clk 00:21:31]} {[%emt 00:00:44]}
Re1 {[%clk 00:09:34]} {[%emt 00:00:22]} 58. Nd5 {[%clk 00:21:27]} {[%emt
00:00:34]} Rc1 {[%clk 00:09:37]} {[%emt 00:00:26]} 59. Nc7 {[%clk 00:20:33]}
{[%emt 00:01:25]} Kc8 {[%clk 00:07:17]} {[%emt 00:02:49]} 60. Ne6 {[%clk
00:20:36]} {[%emt 00:00:27]} Kb7 {[%clk 00:07:29]} {[%emt 00:00:18]} 61. Nxg7
{[%clk 00:20:15]} {[%emt 00:00:51]} Kc6 {[%clk 00:07:41]} {[%emt 00:00:18]} 62.
Ne6 {[%clk 00:18:44]} {[%emt 00:02:01]} Kb7 {[%clk 00:07:46]} {[%emt 00:00:26]}
63. Nc7 {[%clk 00:18:15]} {[%emt 00:00:59]} Kb8 {[%clk 00:07:03]} {[%emt
00:01:12]} 64. Nb5 {[%clk 00:18:31]} {[%emt 00:00:15]} Kb7 {[%clk 00:07:04]}
{[%emt 00:00:28]} 65. Kf2 {[%clk 00:18:55]} {[%emt 00:00:06]} Rh1 {[%clk
00:07:22]} {[%emt 00:00:12]} 66. Ke3 {[%clk 00:19:05]} {[%emt 00:00:20]} Rg1
{[%clk 00:07:20]} {[%emt 00:00:32]} 67. Rh2 {[%clk 00:18:40]} {[%emt 00:00:56]}
Rg7 {[%clk 00:07:42]} {[%emt 00:00:08]} 68. Nc7 {[%clk 00:14:59]} {[%emt
00:04:11]} Kc6 {[%clk 00:07:43]} {[%emt 00:00:29]} 69. Nb5 {[%clk 00:13:17]}
{[%emt 00:02:13]} Kb7 {[%clk 00:08:08]} {[%emt 00:00:04]} 70. Rd2 {[%clk
00:13:33]} {[%emt 00:00:14]} Rg1 {[%clk 00:08:26]} {[%emt 00:00:12]} 71. Nc3
{[%clk 00:12:02]} {[%emt 00:02:02]} Kb8 {[%clk 00:08:32]} {[%emt 00:00:23]} 72.
Nd5 {[%clk 00:12:28]} {[%emt 00:00:04]} Kc8 {[%clk 00:08:57]} {[%emt 00:00:04]}
73. Rh2 {[%clk 00:10:34]} {[%emt 00:02:24]} Rg7 {[%clk 00:09:10]} {[%emt
00:00:16]} 74. Rh6 {[%clk 00:10:42]} {[%emt 00:00:25]} Rf7 {[%clk 00:09:27]}
{[%emt 00:00:12]} 75. Kd3 {[%clk 00:10:16]} {[%emt 00:00:56]} Kb7 {[%clk
00:09:40]} {[%emt 00:00:17]} 76. Ne7 {[%clk 00:08:40]} {[%emt 00:02:06]} Rg7
{[%clk 00:08:51]} {[%emt 00:01:19]} 77. Kc4 {[%clk 00:07:52]} {[%emt 00:01:19]}
Rf7 {[%clk 00:08:50]} {[%emt 00:00:30]} 78. Kd5 {[%clk 00:07:46]} {[%emt
00:00:37]} Nf8 {[%clk 00:08:58]} {[%emt 00:00:21]} 79. Rh8 {[%clk 00:05:44]}
{[%emt 00:02:32]} Ka7 {[%clk 00:08:01]} {[%emt 00:01:27]} 80. d7 {[%clk
00:03:53]} {[%emt 00:02:21]} 1-0